Cogmind - Beta 13 @@@ ROGUE MODE // 2024.04.03 @ 14:36:10 Player: Nathan Result: Destroyed by G-34 Mercenary with Small Laser Performance ------------- Evolutions (0) 0 Regions Visited (4) 800 Robots Destroyed (17) 85 Value Destroyed (499) 499 Prototype IDs (1) 20 Alien Tech Used (0) 0 Bonus (300) 300 TOTAL SCORE: 1704 Bonus ------- Aligned with FarCom 300 Cogmind --------- Core Integrity 0/250 Matter 162/300 Energy 150/160 System Corruption 0% Temperature Cool (94) Movement Walking (260) Ox2 Location -9/Mines Parts ------- > --- POWER (1) -------- Light Nuclear Core > --- PROPULSION (2) --- Aluminum Leg Aluminum Leg > --- UTILITY (2) ------ High-capacity Storage Unit Core Shielding > --- WEAPON (2) ------- Beam Cannon Beam Cannon > --- INVENTORY (20) --- Light Ion Engine Aluminum Leg Aluminum Leg Potential Leg Potential Leg Cooling System High-capacity Battery (250) Medium Matter Pod (100) Targeting Computer ECM Suite EM Pulse Gun EM Pulse Gun Beam Cannon Grenade Launcher Peak State ------------ > --- POWER ------------ Light Nuclear Core > --- PROPULSION ------- Potential Leg Potential Leg > --- UTILITY ---------- Large Storage Unit Light Armor Plating > --- WEAPON ----------- Beam Cannon Beam Cannon > --- INVENTORY -------- Light Ion Engine Light Ion Engine Aluminum Leg Aluminum Leg Cooling System High-capacity Battery Medium Matter Pod Targeting Computer ECM Suite Core Shielding EM Pulse Gun EM Pulse Gun Beam Cannon Grenade Launcher Datajack [Rating: 28] Favorites ----------- Power Light Nuclear Core Engine Light Ion Engine Power Core Light Nuclear Core Propulsion Aluminum Leg Leg Aluminum Leg Utility Large Storage Unit Storage Large Storage Unit Protection Light Armor Plating Weapon Beam Cannon Energy Gun EM Pulse Gun Energy Cannon Beam Cannon Ballistic Gun Assault Rifle Launcher Grenade Launcher Build | -11 -10 -10 -10 -9 ------- Run | Yrd Mat Min Exi Min Slots Evolved . | . . . . . Power . | . . . . . Propulsion . | . . . . . Utility . | . . . . . Weapon . | . . . . . Parts Attached 34 | 6 11 4 3 10 Power 3 | 1 2 . . . Engine 1 | 1 . . . . Core 2 | . 2 . . . Reactor . | . . . . . Propulsion 12 | 2 3 1 2 4 Treads . | . . . . . Leg 12 | 2 3 1 2 4 Wheel . | . . . . . Hover . | . . . . . Flight . | . . . . . Utility 5 | 1 2 . 1 1 Device . | . . . . . Storage 3 | 1 1 . 1 . Processor . | . . . . . Hackware . | . . . . . Protection 2 | . 1 . . 1 Artifact . | . . . . . Weapon 14 | 2 4 3 . 5 Energy Gun 3 | . 1 . . 2 Energy Cannon 7 | . 3 2 . 2 Ballistic Gun 2 | 2 . . . . Ballistic Cannon . | . . . . . Launcher 2 | . . 1 . 1 Special Weapon . | . . . . . Impact Weapon . | . . . . . Slashing Weapon . | . . . . . Piercing Weapon . | . . . . . Special Melee Weapon . | . . . . . Unidentified Prototypes 1 | . . . 1 . Parts Lost 3 | . 1 1 . 1 Power . | . . . . . Propulsion 1 | . . 1 . . Utility 1 | . . . . 1 Weapon 1 | . 1 . . . Highest Loss Streak 1 | . 1 1 . 1 To Critical Strikes . | . . . . . Average Slot Usage (%) 96 | . 92 99 100 97 Engine 1 | . 3 . . . Core 11 | . 9 14 14 14 Leg 27 | . 28 27 28 28 Storage 14 | . 14 14 14 14 Protection 11 | . 8 14 14 11 Energy Gun 1 | . 2 . . 2 Energy Cannon 23 | . 19 28 28 25 Ballistic Gun 2 | . 4 . . . Naked Turns . | . . . . . Heaviest Build 54 | 12 34 34 54 54 Greatest Support 60 | 20 20 20 60 60 Greatest Overweight (x) 3 | 3 1 1 1 2 Average Overweight (x) . | . . 1 . 1 Largest Inventory Capacity 20 | 8 15 15 20 20 Average Capacity 14 | 7 14 15 15 20 Most Carried 17 | 6 15 15 15 17 Average Carried 12 | 4 11 14 14 14 Final Capacity 20 | 8 15 15 20 20 Final Carried 15 | 6 15 15 15 14 Class Distribution -------------------- 100% | Mutant Dominant Class ---------------- Mutant | -10/Materials Mutant | -10/Mines Mutant | -10/Exiles Mutant | -9/Mines Resources | -11 -10 -10 -10 -9 ----------- Run | Yrd Mat Min Exi Min Matter Collected 665 | 188 293 61 . 123 Remotely . | . . . . . Salvage Created 678 | . 405 123 . 150 Parts 24 | . 14 4 . 6 Haulers Intercepted 1 | . 1 . . . Recyclers Shooed 2 | . 2 . . . Parts Field Recycled . | . . . . . Retrieved Matter . | . . . . . Parts Self-Destructed . | . . . . . Prevented . | . . . . . Kills | -11 -10 -10 -10 -9 ------- Run | Yrd Mat Min Exi Min Combat Hostiles Destroyed 13 | . 5 4 . 4 Guns 2 | . 1 . . 1 Cannons 11 | . 4 4 . 3 Classes Destroyed 7 | . 5 1 . 1 Hauler 1 | . 1 . . . Recycler 1 | . 1 . . . Operator 1 | . 1 . . . Watcher 1 | . 1 . . . Swarmer 2 | . . 2 . . Grunt 10 | . 5 2 . 3 Duelist 1 | . . . . 1 Best Kill Streak 4 | . 4 2 . 3 Combat Bots Only 3 | . 2 2 . 3 Max Kills in Single Turn 1 | . 1 1 . 1 Gunslinging . | . . . . . Exploded . | . . . . . Melee . | . . . . . Uniques/NPCs Destroyed . | . . . . . Combat | -11 -10 -10 -10 -9 -------- Run | Yrd Mat Min Exi Min Hostile Shots Fired 109 | . 71 16 . 22 Missed 22 | . 20 2 . . Damage Taken 1119 | . 591 168 . 360 Core 251 | . 116 43 . 92 Absorbed by Shields . | . . . . . Redirected to Shielding 9 | . . . . 9 Regen/Repaired (Parts) 21 | . 21 . . . Core Remaining (%) 100 | 100 . . . . Volleys Fired 60 | . 36 13 . 11 Largest 2 | . 2 2 . 2 Hottest 120 | . 120 120 . 120 Shots Fired 108 | . 65 23 . 20 Gun 42 | . 40 . . 2 Cannon 64 | . 25 22 . 17 Launcher 2 | . . 1 . 1 Special . | . . . . . Kinetic 27 | . 27 . . . Thermal 64 | . 25 22 . 17 Explosive 2 | . . 1 . 1 Electromagnetic 15 | . 13 . . 2 Robot Hit Streak 10 | . 10 10 . 6 Robot Miss Streak 4 | . 4 2 . 4 Penetration Max . | . . . . . Secondary Targets . | . . . . . Shots Hit Robots 64 | . 38 16 . 10 Core Hits 28 | . 15 5 . 8 Critical Kills . | . . . . . Critical Parts Destroyed . | . . . . . Critical Strikes . | . . . . . Melee Attacks . | . . . . . Impact . | . . . . . Slashing . | . . . . . Piercing . | . . . . . Sneak Attacks . | . . . . . Combat Hostiles . | . . . . . Follow-up Attacks . | . . . . . Damage Inflicted 1159 | . 652 279 . 228 Guns 308 | . 283 . . 25 Cannons 786 | . 349 279 . 158 Explosions 45 | . . . . 45 Melee . | . . . . . Ramming 20 | . 20 . . . Kinetic 201 | . 201 . . . Thermal 786 | . 349 279 . 158 Explosive 45 | . . . . 45 Electromagnetic 107 | . 82 . . 25 Impact . | . . . . . Slashing . | . . . . . Piercing . | . . . . . Highest Corruption . | . . . . . Average Corruption . | . . . . . Corruption Purged . | . . . . . Corruption Blocked . | . . . . . Overload Shots . | . . . . . Overflow Damage . | . . . . . Projectiles . | . . . . . Explosions . | . . . . . Melee . | . . . . . Knockbacks . | . . . . . Impact . | . . . . . Kinetic . | . . . . . Secondary . | . . . . . Self-Inflicted Damage 27 | . . . . 27 Shots 1 | . . . . 1 Rammed . | . . . . . Targets Rammed 3 | . 3 . . . Kicked 3 | . 3 . . . Crushed . | . . . . . Highest Temperature 526 | . 224 497 . 526 Average Temperature 143 | . 76 178 . 239 Received Heat Transfer 534 | . 279 81 . 174 Effects 13 | . . 4 . 9 Shutdowns 2 | . . 1 . 1 Energy Bleed 2 | . . 1 . 1 Interference 5 | . . 2 . 3 Matter Decay 2 | . . . . 2 Short Circuit 2 | . . . . 2 Siege Activations . | . . . . . Robots Corrupted . | . . . . . Combat Hostiles . | . . . . . Parts Fried 1 | . 1 . . . Impact Corruptions . | . . . . . Robots Melted . | . . . . . Combat Hostiles . | . . . . . Parts Melted 5 | . 1 3 . 1 Heat Transferred 1665 | . 740 592 . 333 Parts Sabotaged . | . . . . . Parts Stolen . | . . . . . Parts Stripped . | . . . . . Power Chain Reactions . | . . . . . Alert | -11 -10 -10 -10 -9 ------- Run | Yrd Mat Min Exi Min Peak Influence 157 | . 157 110 . 101 Initial . | . . . . . Average 42 | . 39 48 . 54 Maximum Alert Level . | . . . . . Low Security (%) 100 | 100 100 100 . 100 Level 1 . | . . . . . Level 2 . | . . . . . Level 3 . | . . . . . Level 4 . | . . . . . Level 5 . | . . . . . High Security . | . . . . . Max Security . | . . . . . Squads Dispatched 1 | . 1 . . . Investigation . | . . . . . Extermination . | . . . . . Reinforcement 1 | . 1 . . . Assault . | . . . . . Garrison . | . . . . . Intercept . | . . . . . Searches Triggered . | . . . . . Construction Impeded . | . . . . . Haulers Reinforced . | . . . . . Active Scanning Responses . | . . . . . Cargo Convoy Interrupts . | . . . . . Stealth | -11 -10 -10 -10 -9 --------- Run | Yrd Mat Min Exi Min Distress Signals . | . . . . . Communications Jammed . | . . . . . Distress Signals . | . . . . . Times Spotted 25 | . 13 7 . 5 Peak Tracking Total 3 | . 3 3 . 3 Tactical Retreats 1 | . . 1 . . Traps | -11 -10 -10 -10 -9 ------- Run | Yrd Mat Min Exi Min Traps Triggered . | . . . . . Indirectly . | . . . . . Trap Hack Attempts . | . . . . . Triggered . | . . . . . Disarmed . | . . . . . Reprogrammed . | . . . . . Reused . | . . . . . Traps Extracted . | . . . . . Installed . | . . . . . Triggered . | . . . . . Machines | -11 -10 -10 -10 -9 ---------- Run | Yrd Mat Min Exi Min Machines Disabled . | . . . . . Max in Single Turn . | . . . . . Machines Repaired . | . . . . . Machines Dismantled . | . . . . . Machines Sabotaged . | . . . . . Overloaded Fab Kills . | . . . . . Hacking | -11 -10 -10 -10 -9 --------- Run | Yrd Mat Min Exi Min Machines Accessed 3 | . 3 . . . Terminals 2 | . 2 . . . Fabricators . | . . . . . Repair Stations 1 | . 1 . . . Recycling Units . | . . . . . Scanalyzers . | . . . . . Garrison Access . | . . . . . Total Hacks 7 | . 7 . . . Successful 5 | . 5 . . . Failed 2 | . 2 . . . Catastrophic . | . . . . . Database Lockouts . | . . . . . Manual 3 | . . . 3 . Terminals 5 | . 5 . . . Fabricators . | . . . . . Repair Stations 2 | . 2 . . . Recycling Units . | . . . . . Scanalyzers . | . . . . . Garrison Access . | . . . . . Terminal Hacks 3 | . 3 . . . Emergency Access Points 2 | . 2 . . . Locate Traps 1 | . 1 . . . Fabricator Hacks . | . . . . . Repair Station Hacks 2 | . 2 . . . Scan Component 1 | . 1 . . . Repair 1 | . 1 . . . Recycling Unit Hacks . | . . . . . Scanalyzer . | . . . . . Garrison Access Hacks . | . . . . . Unauthorized Hacks . | . . . . . Terminals . | . . . . . Fabricators . | . . . . . Repair Stations . | . . . . . Recycling Units . | . . . . . Scanalyzers . | . . . . . Garrison Access . | . . . . . Data Cores Recovered . | . . . . . Used . | . . . . . Hacking Detections 1 | . 1 . . . Full Trace Events . | . . . . . Feedback Events . | . . . . . Feedback Blocked . | . . . . . Robot Schematics Acquired . | . . . . . Robots Built . | . . . . . Authchips . | . . . . . Time . | . . . . . Total Robot Build Rating . | . . . . . Part Schematics Acquired . | . . . . . Parts Built . | . . . . . Authchips . | . . . . . Time . | . . . . . Total Part Build Rating . | . . . . . Parts Repaired 1 | . 1 . . . Time 38 | . 38 . . . Parts Recycled . | . . . . . Recycled Matter . | . . . . . Retrieved Matter . | . . . . . Retrieved Components . | . . . . . Parts Scanalyzed . | . . . . . Part Schematics Acquired . | . . . . . Parts Damaged . | . . . . . Bothacking | -11 -10 -10 -10 -9 ------------ Run | Yrd Mat Min Exi Min Used RIF Installer . | . . . . . Robots Hacked . | . . . . . Non-combat . | . . . . . Combat . | . . . . . Robot Hacks Applied . | . . . . . Relay Couplers Released . | . . . . . Fabnet Peak Effective % . | . . . . . Robots Rewired . | . . . . . Allies Hacked . | . . . . . Hacks Repelled . | . . . . . Allies | -11 -10 -10 -10 -9 -------- Run | Yrd Mat Min Exi Min Total Allies 1 | . . 1 . . Largest Group 1 | . . 1 1 . Highest-Rated Group 31 | . . 31 31 . Highest-Rated Ally 31 | . . 31 31 . Total Orders . | . . . . . Ally Attacks . | . . . . . Total Damage . | . . . . . Kills . | . . . . . Allies Corrupted . | . . . . . Allies Melted . | . . . . . Intel | -11 -10 -10 -10 -9 ------- Run | Yrd Mat Min Exi Min Robot Analysis Total . | . . . . . Derelict Logs Recovered 3 | . . 2 . 1 Drone Launches . | . . . . . Drone Recoveries . | . . . . . Exploration | -11 -10 -10 -10 -9 ------------- Run | Yrd Mat Min Exi Min Turns Passed 1974 | 57 876 539 343 159 Spaces Moved 970 | 35 396 241 243 55 Core 15 | 15 . . . . Treads . | . . . . . Legs 955 | 20 396 241 243 55 Wheels . | . . . . . Hover . | . . . . . Flight . | . . . . . Fastest Speed 50 | 50 120 190 90 90 Average Speed 170 | 123 176 190 138 204 Slowest Speed 260 | 200 190 190 190 260 Overloaded Moves . | . . . . . Propulsion Burnouts . | . . . . . Robots Hopped . | . . . . . Cave-ins Triggered . | . . . . . Exploration Rate (%) 35 | 3 55 48 62 10 Regions Visited 4 Branch Regions 3 Pre-discovered Areas 3 | . . 2 . 1 Known Exits Taken . | . . . . . Unknown Exits Taken 4 | 1 1 1 1 . Scrap Searched . | . . . . . Spaces Dug . | . . . . . Terrain Destroyed 19 | . . 8 . 11 Melee . | . . . . . Projectile . | . . . . . AOE 19 | . . 8 . 11 Terrain Rammed . | . . . . . Walls Destroyed . | . . . . . Machines Disabled . | . . . . . Actions | -11 -10 -10 -10 -9 --------- Run | Yrd Mat Min Exi Min Total 1179 | 46 503 300 250 80 Wait 77 | . 38 37 . 2 Move 966 | 34 395 240 242 55 Hop . | . . . . . Pick Up 22 | 6 12 3 1 . Fast Attach 13 | 6 4 1 2 . Attach 2 | . . 1 . 1 Detach . | . . . . . Swap 19 | . 7 2 1 9 Drop 17 | . 8 3 4 2 Fire 60 | . 36 13 . 11 Melee . | . . . . . Ram . | . . . . . Kick 3 | . 3 . . . Crush . | . . . . . Escape Stasis . | . . . . . Rewire . | . . . . . Trap . | . . . . . Miscellaneous . | . . . . . Route ------- -11/Scrapyard -10/Materials (discovered 2 exits: [*Mat] / [*Min]) -10/Mines (discovered 2 exits: [*Mat] / *Exi) -10/Exiles (discovered 2 exits: [*Min x2]) -9/Mines History --------- Turn | Location | Event 25 | -11/Scrapyard | Discovered new exit (range 15) 58 | -11/Scrapyard | Entered Materials 184 | -10/Materials | Discovered new exit (range 14) 321 | -10/Materials | Build established: Mutant 778 | -10/Materials | Discovered new exit (range 16) 897 | -10/Materials | Repaired Lgt. Nuclear Core 934 | -10/Materials | Entered Mines 945 | -10/Mines | Core integrity fell below 50% 996 | -10/Mines | Discovered new exit (range 5) 1024 | -10/Mines | Learned location of 1 exit from Materials 1214 | -10/Mines | Escorted by a lone wolf Derelict 1234 | -10/Mines | Learned location of Storage (-9) 1306 | -10/Mines | YI-UF0 nonchalantly dropped a Grenade Launcher on the ground 1464 | -10/Mines | Deemed a non-threat by the Exiles lab entrance 1466 | -10/Mines | Discovered new exit (range 5) 1473 | -10/Mines | Entered Exiles 1473 | -10/Exiles | Accompanied by 1 ally 1504 | -10/Exiles | Discovered new exit (range 15) 1527 | -10/Exiles | Met 8R-AWN 1559 | -10/Exiles | Met EX-HEX 1616 | -10/Exiles | Met EX-BIN 1643 | -10/Exiles | Aligned with FarCom system 1644 | -10/Exiles | Given EX-Vault access code 1688 | -10/Exiles | Opened EX-Vault 1698 | -10/Exiles | Found Prototype Leg 1698 | -10/Exiles | Identified Potential Leg 1701 | -10/Exiles | Found Potential Leg 1723 | -10/Exiles | Warned to stay clear of 0b10 Research branches 1736 | -10/Exiles | Exiles lab attacked by MAIN.C 1808 | -10/Exiles | Discovered new exit (range 10) 1816 | -10/Exiles | Left Exiles lab with Potential Leg 1816 | -10/Exiles | Entered Mines 1823 | -9/Mines | Met a Derelict bent on vengeance 1863 | -9/Mines | Core integrity fell below 20% 1975 | -9/Mines | Destroyed by G-34 Mercenary with Small Laser Last Messages --------------- Potential Leg broken. Overheating: Short circuit. Overheating: System interference. Beam Cannon temporarily disabled. Potential Leg broken. Overheating: Short circuit. Overheating: System interference. EM Pulse Gun temporarily disabled. G-47 Trooper destroyed. Acquired 105 matter. Acquired 18 matter. Overheating: Energy bleed (-20). Overheating: Matter decay (-60). Dropped Lgt. Ion Engine. Dropped Datajack. The unstable cave ceiling collapses. Acquired derelict log, extracted data. Data stored: Factory entrances (x1). Melee Analysis Suite melted. L-31 Rogue destroyed. Map ----- +----------------------------------------------------+ | ???????????????????????????????????? | | ???????????????????????????????????? | | ???????????????????????????????????? | | ???????????????????????????????????? | | ???????????????????????????????????? | | ???????????????????????????????????? | | ???????????????????????????????????? | | ???????????????????????????????????? | | ???????????????????????????????????? | | ???????????????????????????????????? | | ???????????????????????????????????? | | ???????????????????????????????????? | | ???????????????????????????????????? | | ????????????######?????????????????? | | ???????????? ??????????????????? | | ???????????? ??????????????????? | | ???????????? #????????????????? | | ???????????? """ #????????????????? | | ???????#???? """ ?????????????????? | | ???????# ### """???????????????????? | | ????????? ?????????????????????? | | ??????????# #??????????????????????? | | ??????????# #??????????????????????? | | ??????????#g#??????????????????????? | | ??????????#%#??????????????????????? | | ??????????#@#??????????????????????? | | ??????????# #??????????????????????? | | ??????????# #??????????????????????? | | ??#####???# #??????????????????????? | | ?## ##??# #??????????????????????? | | ?# ##?# ###????????????????????? | | ?# #?# #????????????????????? | | ?## ##### #????????????????????? | | ??# #??# #????????????????????? | | ??# #??# #????????????????????? | | ?## ##### ########?????????????? | | ?# ### #?????????? | | ?#![ #?# ## ########?????????????? | | ?##=* ##?# ## #????????????????????? | | ?## ###### ##???????????????????? | | ?#!/# ## ##??????????????????? | | ?# * #??????????????????? | | ?## # ## ## ##??????????????????? | | ??###########?##???????????????????? | | ???????????????????????????????????? | | ???????????????????????????????????? | | ???????????????????????????????????? | | | | | | | +----------------------------------------------------+ Best States ------------- Heat Dissipation 25 Energy Generation 14 Energy Capacity 160 Matter Stores 300 Matter Capacity 300 Sight Range 16 Terrain Scan Density 10 Armor Coverage 150 Core Shielding 20 Evasion (%) 57 Item Schematics ----------------- None Robot Schematics ------------------ None Fabricated ------------ Nothing Alien Tech Used ----------------- None Achievements -------------- None Challenges ------------ None Game ------ Seed WeaponsSpectralMultitool Manual? 0 Play Time 00:17:47 Cumulative 5.4 hours Start 2024.04.03 @ 14:20:36 End 2024.04.03 @ 14:36:10 Sessions 1 Manual Loads 0 Difficulty Rogue Special Mode None Game No. 15 Rogue 9 Adventurer 6 Explorer 0 Win Type - Total 0 Types 0/0/0/0/0/0/0/0/0 Lore% 11 Gallery% 10 Achievement% 9 Wizard Run 0 Options --------- Layout 1 ASCII 0 Keyboard 0 Movement Mouse Keybinds 0 Fullscreen 1 Font 24/Smallcaps Map View 50x35 Zoom Use 0% Tactical HUD 0 Map Filters NONE Filters NONE Steam 1 RUN: 329fefc3-58aa-4beb-8dec-f05cd74d4b80